[Event "Early-Titled-Tuesday-Blitz-October-17-2023"]
[Site "Chess.com"]
[Date "2023.10.17"]
[Round "11"]
[White "mary-sanna"]
[Black "emeli_chess"]
[Result "1-0"]
[WhiteElo "2204"]
[BlackElo "2387"]
[TimeControl "180+1"]
[EndTime "10:10:22 PDT"]
[Termination "mary-sanna won by resignation"]

1. d4 {[%clk 0:03:00]} 1... Nf6 {[%clk 0:02:59.6]} 2. c4 {[%clk 0:02:59.8]} 2...
e6 {[%clk 0:02:59.7]} 3. g3 {[%clk 0:02:58.8]} 3... d5 {[%clk 0:02:59.1]} 4. Nf3
{[%clk 0:02:58.6]} 4... dxc4 {[%clk 0:02:56.1]} 5. Bg2 {[%clk 0:02:58.1]} 5...
Nc6 {[%clk 0:02:56]} 6. a4 {[%clk 0:02:55.8]} 6... a6 {[%clk 0:02:55.4]} 7. O-O
{[%clk 0:02:54.9]} 7... Bd6 {[%clk 0:02:55]} 8. Qc2 {[%clk 0:02:53.8]} 8... O-O
{[%clk 0:02:54.4]} 9. Qxc4 {[%clk 0:02:53.6]} 9... e5 {[%clk 0:02:54.3]} 10.
dxe5 {[%clk 0:02:45.5]} 10... Nxe5 {[%clk 0:02:54.1]} 11. Nxe5 {[%clk
0:02:45.4]} 11... Bxe5 {[%clk 0:02:54.5]} 12. Nc3 {[%clk 0:02:44.3]} 12... c6
{[%clk 0:02:51.1]} 13. Rd1 {[%clk 0:02:40.8]} 13... Qe7 {[%clk 0:02:50.5]} 14.
Be3 {[%clk 0:02:32.9]} 14... Be6 {[%clk 0:02:46]} 15. Qh4 {[%clk 0:02:11.1]}
15... Rfd8 {[%clk 0:02:27.8]} 16. Bb6 {[%clk 0:02:08.3]} 16... Rxd1+ {[%clk
0:02:25.3]} 17. Rxd1 {[%clk 0:02:07.7]} 17... Bc7 {[%clk 0:02:14.5]} 18. Bd4
{[%clk 0:01:45.7]} 18... Rd8 {[%clk 0:02:08.6]} 19. Bxf6 {[%clk 0:01:36.5]}
19... Qxf6 {[%clk 0:02:05]} 20. Qxf6 {[%clk 0:01:35.1]} 20... Rxd1+ {[%clk
0:01:58.4]} 21. Nxd1 {[%clk 0:01:35]} 21... gxf6 {[%clk 0:01:59.3]} 22. Nc3
{[%clk 0:01:24.8]} 22... Ba5 {[%clk 0:01:44.3]} 23. Ne4 {[%clk 0:01:23.9]} 23...
Bb3 {[%clk 0:01:30.6]} 24. Nc5 {[%clk 0:01:20.3]} 24... Bd1 {[%clk 0:01:26.8]}
25. Nxb7 {[%clk 0:01:18.8]} 25... Bb4 {[%clk 0:01:24.1]} 26. Bxc6 {[%clk
0:01:17.2]} 26... Bxe2 {[%clk 0:01:23.7]} 27. f3 {[%clk 0:01:07.1]} 27... Be1
{[%clk 0:01:15.8]} 28. Be4 {[%clk 0:01:01.7]} 28... f5 {[%clk 0:01:14]} 29. Bc6
{[%clk 0:00:55.6]} 29... Kf8 {[%clk 0:01:06.8]} 30. Nd6 {[%clk 0:00:54.9]} 30...
Bd3 {[%clk 0:01:04.2]} 31. Kg2 {[%clk 0:00:52.6]} 31... Ke7 {[%clk 0:01:02.5]}
32. Nb7 {[%clk 0:00:43.4]} 32... Bb4 {[%clk 0:01:01.1]} 33. Kf2 {[%clk
0:00:33.2]} 33... Bc2 {[%clk 0:00:48.2]} 34. Ke3 {[%clk 0:00:32.1]} 34... h5
{[%clk 0:00:45]} 35. Kd4 {[%clk 0:00:30.9]} 35... Be1 {[%clk 0:00:41.9]} 36. Ke5
{[%clk 0:00:28.4]} 36... h4 {[%clk 0:00:39.1]} 37. gxh4 {[%clk 0:00:28.2]} 37...
Bxh4 {[%clk 0:00:39.1]} 38. Nc5 {[%clk 0:00:27.9]} 38... Bf6+ {[%clk 0:00:37.9]}
39. Kd5 {[%clk 0:00:26.7]} 39... Bb3+ {[%clk 0:00:36.6]} 40. Nxb3 {[%clk
0:00:26.6]} 40... Bxb2 {[%clk 0:00:34.8]} 41. Nc5 {[%clk 0:00:26.1]} 41... a5
{[%clk 0:00:33.4]} 42. Nb7 {[%clk 0:00:26]} 42... Bc3 {[%clk 0:00:32.8]} 43. Bb5
{[%clk 0:00:25.6]} 43... Kf6 {[%clk 0:00:32.2]} 44. Nd6 {[%clk 0:00:25.2]} 44...
Kg5 {[%clk 0:00:31.9]} 45. Nxf7+ {[%clk 0:00:25.3]} 45... Kh4 {[%clk 0:00:31.4]}
46. Nd6 {[%clk 0:00:25.4]} 46... f4 {[%clk 0:00:31.4]} 47. Ke4 {[%clk
0:00:25.6]} 47... Bd2 {[%clk 0:00:31]} 48. Nc4 {[%clk 0:00:26]} 48... Bb4 {[%clk
0:00:29.7]} 49. Kxf4 {[%clk 0:00:25.8]} 49... Kh3 {[%clk 0:00:30.3]} 50. Ke5
{[%clk 0:00:25.3]} 50... Kxh2 {[%clk 0:00:30]} 51. f4 {[%clk 0:00:25.7]} 51...
Kg3 {[%clk 0:00:30.1]} 52. f5 {[%clk 0:00:26]} 52... Kg4 {[%clk 0:00:30.6]} 53.
Ke6 {[%clk 0:00:25.3]} 53... Kg5 {[%clk 0:00:30.7]} 54. f6 {[%clk 0:00:25.7]}
54... Kg6 {[%clk 0:00:31]} 55. f7 {[%clk 0:00:26.1]} 55... Kg7 {[%clk
0:00:31.4]} 56. Ne5 {[%clk 0:00:26.3]} 56... Kf8 {[%clk 0:00:29.1]} 57. Nd7+
{[%clk 0:00:26.2]} 57... Kg7 {[%clk 0:00:29.5]} 58. Bc4 {[%clk 0:00:25.7]} 58...
Ba3 {[%clk 0:00:28.3]} 59. Bd5 {[%clk 0:00:25.1]} 59... Bb4 {[%clk 0:00:27.8]}
60. Kf5 {[%clk 0:00:25]} 60... Ba3 {[%clk 0:00:27]} 61. Ke4 {[%clk 0:00:25.4]}
61... Bb4 {[%clk 0:00:26.4]} 62. Kd3 {[%clk 0:00:25.8]} 62... Ba3 {[%clk
0:00:26.3]} 63. Kc4 {[%clk 0:00:26.3]} 63... Bc1 {[%clk 0:00:26.3]} 64. Kb5
{[%clk 0:00:26.4]} 64... Bd2 {[%clk 0:00:26.5]} 65. f8=Q+ {[%clk 0:00:26.1]} 1-0

[Event "Early-Titled-Tuesday-Blitz-October-17-2023"]
[Site "Chess.com"]
[Date "2023.10.17"]
[Round "11"]
[White "masterofpuppets2"]
[Black "Doomfist26"]
[Result "1/2-1/2"]
[WhiteElo "2522"]
[BlackElo "2622"]
[TimeControl "180+1"]
[EndTime "10:10:26 PDT"]
[Termination "Game drawn by repetition"]

1. d4 {[%clk 0:03:00.9]} 1... f5 {[%clk 0:02:57.3]} 2. c4 {[%clk 0:03:00.6]}
2... Nf6 {[%clk 0:02:58]} 3. Nc3 {[%clk 0:03:00.9]} 3... g6 {[%clk 0:02:58.8]}
4. h4 {[%clk 0:03:01.3]} 4... h6 {[%clk 0:02:58.7]} 5. Nh3 {[%clk 0:02:56.6]}
5... d6 {[%clk 0:02:59.2]} 6. Nf4 {[%clk 0:02:53.5]} 6... Rg8 {[%clk 0:02:59.7]}
7. d5 {[%clk 0:02:39.8]} 7... c6 {[%clk 0:02:58]} 8. g3 {[%clk 0:02:35.1]} 8...
e5 {[%clk 0:02:53.1]} 9. dxe6 {[%clk 0:02:32.4]} 9... Qe7 {[%clk 0:02:53.6]} 10.
h5 {[%clk 0:02:14.1]} 10... g5 {[%clk 0:02:48.9]} 11. Ng6 {[%clk 0:02:11.6]}
11... Qxe6 {[%clk 0:02:49.3]} 12. Nxf8 {[%clk 0:02:09.2]} 12... Rxf8 {[%clk
0:02:50.2]} 13. Bg2 {[%clk 0:02:06]} 13... Na6 {[%clk 0:02:50.1]} 14. Qc2 {[%clk
0:01:55.6]} 14... Qxc4 {[%clk 0:02:42.6]} 15. b3 {[%clk 0:01:44.7]} 15... Nb4
{[%clk 0:02:36.1]} 16. Qd2 {[%clk 0:01:43.8]} 16... Qd4 {[%clk 0:02:33.5]} 17.
Qb2 {[%clk 0:01:26.9]} 17... Ng4 {[%clk 0:02:25.1]} 18. Rf1 {[%clk 0:01:17.1]}
18... Ne5 {[%clk 0:02:20.7]} 19. Be3 {[%clk 0:00:59.5]} 19... Qg4 {[%clk
0:02:18.9]} 20. O-O-O {[%clk 0:00:51.8]} 20... f4 {[%clk 0:02:15.6]} 21. Bd4
{[%clk 0:00:45.9]} 21... fxg3 {[%clk 0:02:03.6]} 22. Bxe5 {[%clk 0:00:39]} 22...
dxe5 {[%clk 0:02:02.1]} 23. Ne4 {[%clk 0:00:38]} 23... Be6 {[%clk 0:01:43.5]}
24. Qxe5 {[%clk 0:00:34]} 24... Qf4+ {[%clk 0:01:43.6]} 25. Qxf4 {[%clk
0:00:30.8]} 25... gxf4 {[%clk 0:01:44.2]} 26. fxg3 {[%clk 0:00:29.4]} 26... fxg3
{[%clk 0:01:44.5]} 27. Nxg3 {[%clk 0:00:21.6]} 27... Rg8 {[%clk 0:01:40.6]} 28.
Rf3 {[%clk 0:00:21.4]} 28... Nxa2+ {[%clk 0:01:37.1]} 29. Kb2 {[%clk 0:00:21.2]}
29... Nb4 {[%clk 0:01:37.2]} 30. Re3 {[%clk 0:00:20.5]} 30... Ke7 {[%clk
0:01:35.2]} 31. Bh3 {[%clk 0:00:18.1]} 31... Rxg3 {[%clk 0:01:35.1]} 32. Rxg3
{[%clk 0:00:15.9]} 32... Bxh3 {[%clk 0:01:35.7]} 33. Rxh3 {[%clk 0:00:16.7]}
33... Nd5 {[%clk 0:01:34.5]} 34. Rg1 {[%clk 0:00:15.4]} 34... Re8 {[%clk
0:01:21.8]} 35. Rg6 {[%clk 0:00:12.3]} 35... Kd7 {[%clk 0:01:20.5]} 36. Rxh6
{[%clk 0:00:10.9]} 36... Rxe2+ {[%clk 0:01:20.3]} 37. Kc1 {[%clk 0:00:11]} 37...
b5 {[%clk 0:01:09.5]} 38. Rh7+ {[%clk 0:00:11.2]} 38... Kd6 {[%clk 0:01:09.6]}
39. h6 {[%clk 0:00:11.8]} 39... b4 {[%clk 0:01:10.3]} 40. Rb7 {[%clk 0:00:09.8]}
40... Re8 {[%clk 0:00:24]} 41. h7 {[%clk 0:00:10.1]} 41... Rh8 {[%clk
0:00:24.7]} 42. Rxa7 {[%clk 0:00:08.9]} 42... Nf6 {[%clk 0:00:23.4]} 43. Rf7
{[%clk 0:00:08.7]} 43... Ke6 {[%clk 0:00:23.6]} 44. Rc7 {[%clk 0:00:09]} 44...
Kd6 {[%clk 0:00:23.3]} 45. Rf7 {[%clk 0:00:09.1]} 45... Ke6 {[%clk 0:00:23.6]}
46. Rb7 {[%clk 0:00:09.9]} 46... c5 {[%clk 0:00:21.9]} 47. Rb5 {[%clk
0:00:09.2]} 47... Kd5 {[%clk 0:00:19]} 48. Rb6 {[%clk 0:00:08.8]} 48... Rxh7
{[%clk 0:00:18.2]} 49. Rxh7 {[%clk 0:00:04.2]} 49... Nxh7 {[%clk 0:00:19.1]} 50.
Rg6 {[%clk 0:00:04.1]} 50... Nf8 {[%clk 0:00:19.4]} 51. Rg5+ {[%clk 0:00:03.5]}
51... Kd4 {[%clk 0:00:19.9]} 52. Kc2 {[%clk 0:00:03.3]} 52... Ne6 {[%clk
0:00:20.4]} 53. Rg4+ {[%clk 0:00:03.8]} 53... Kd5 {[%clk 0:00:20.8]} 54. Rh4
{[%clk 0:00:02.6]} 54... Nd4+ {[%clk 0:00:20.7]} 55. Kb2 {[%clk 0:00:03.1]}
55... Nc6 {[%clk 0:00:20.6]} 56. Rh5+ {[%clk 0:00:03.3]} 56... Kd4 {[%clk
0:00:21.3]} 57. Rh4+ {[%clk 0:00:03.7]} 57... Kd5 {[%clk 0:00:21.6]} 58. Rh5+
{[%clk 0:00:04.3]} 58... Kd4 {[%clk 0:00:21.8]} 59. Rh4+ {[%clk 0:00:05]} 59...
Kd3 {[%clk 0:00:22.1]} 60. Rh3+ {[%clk 0:00:05.5]} 60... Kd4 {[%clk 0:00:22.5]}
61. Rh4+ {[%clk 0:00:06.2]} 1/2-1/2

[Event "Early-Titled-Tuesday-Blitz-October-17-2023"]
[Site "Chess.com"]
[Date "2023.10.17"]
[Round "11"]
[White "Ginzburg_Yakov"]
[Black "carokannlover213"]
[Result "1-0"]
[WhiteElo "2624"]
[BlackElo "2719"]
[TimeControl "180+1"]
[EndTime "10:10:32 PDT"]
[Termination "Ginzburg_Yakov won on time"]

1. e4 {[%clk 0:02:56.6]} 1... c5 {[%clk 0:03:00.2]} 2. Nf3 {[%clk 0:02:55.9]}
2... d6 {[%clk 0:02:59.3]} 3. c3 {[%clk 0:02:55]} 3... Nf6 {[%clk 0:02:58.5]} 4.
Be2 {[%clk 0:02:54.7]} 4... g6 {[%clk 0:02:50.5]} 5. O-O {[%clk 0:02:54.4]} 5...
Bg7 {[%clk 0:02:51.1]} 6. Re1 {[%clk 0:02:51.6]} 6... O-O {[%clk 0:02:48.9]} 7.
Bf1 {[%clk 0:02:51.7]} 7... Nc6 {[%clk 0:02:49.4]} 8. d4 {[%clk 0:02:49.9]} 8...
cxd4 {[%clk 0:02:48]} 9. cxd4 {[%clk 0:02:47.6]} 9... Bg4 {[%clk 0:02:48.6]} 10.
d5 {[%clk 0:02:44.6]} 10... Ne5 {[%clk 0:02:34.2]} 11. Nbd2 {[%clk 0:02:44.4]}
11... Rc8 {[%clk 0:02:27.5]} 12. Qb3 {[%clk 0:02:43]} 12... Nxf3+ {[%clk
0:02:26.4]} 13. Nxf3 {[%clk 0:02:43.3]} 13... Bxf3 {[%clk 0:02:26.4]} 14. Qxf3
{[%clk 0:02:30.3]} 14... Nd7 {[%clk 0:02:25]} 15. Rb1 {[%clk 0:02:28.6]} 15...
Qa5 {[%clk 0:02:06.2]} 16. Bg5 {[%clk 0:02:10.1]} 16... Rfe8 {[%clk 0:02:00.5]}
17. a3 {[%clk 0:02:06.1]} 17... Qb6 {[%clk 0:01:51.6]} 18. Be3 {[%clk
0:02:01.4]} 18... Bd4 {[%clk 0:01:50.6]} 19. Bxd4 {[%clk 0:01:49.6]} 19... Qxd4
{[%clk 0:01:51.5]} 20. Bb5 {[%clk 0:01:43.8]} 20... Ne5 {[%clk 0:01:50.1]} 21.
Qd1 {[%clk 0:01:39.4]} 21... Qxd1 {[%clk 0:01:46.2]} 22. Rexd1 {[%clk
0:01:40.1]} 22... Red8 {[%clk 0:01:42.5]} 23. Rbc1 {[%clk 0:01:33.7]} 23... a6
{[%clk 0:01:41.6]} 24. Be2 {[%clk 0:01:23.8]} 24... g5 {[%clk 0:01:41.5]} 25. g3
{[%clk 0:01:13.5]} 25... Kg7 {[%clk 0:01:30.9]} 26. Kg2 {[%clk 0:01:10.4]} 26...
b5 {[%clk 0:01:18.1]} 27. f4 {[%clk 0:01:08.4]} 27... gxf4 {[%clk 0:01:17.3]}
28. gxf4 {[%clk 0:01:08.2]} 28... Nc4 {[%clk 0:00:47.3]} 29. Bxc4 {[%clk
0:01:06]} 29... bxc4 {[%clk 0:00:48.2]} 30. Kf3 {[%clk 0:01:00.1]} 30... Rb8
{[%clk 0:00:47.2]} 31. Rd2 {[%clk 0:00:48.9]} 31... Rb3+ {[%clk 0:00:45.7]} 32.
Rc3 {[%clk 0:00:40.5]} 32... Rdb8 {[%clk 0:00:46.3]} 33. e5 {[%clk 0:00:26]}
33... Rxc3+ {[%clk 0:00:14.5]} 34. bxc3 {[%clk 0:00:26.8]} 34... Rb3 {[%clk
0:00:15.2]} 35. Rc2 {[%clk 0:00:27]} 35... Rxa3 {[%clk 0:00:15.8]} 36. Ke4
{[%clk 0:00:27.6]} 36... Ra1 {[%clk 0:00:14.4]} 37. Kd4 {[%clk 0:00:27.9]} 37...
Rf1 {[%clk 0:00:14.3]} 38. Rg2+ {[%clk 0:00:23.9]} 38... Kf8 {[%clk 0:00:09.1]}
39. Rg4 {[%clk 0:00:24.3]} 39... a5 {[%clk 0:00:06.8]} 40. Kxc4 {[%clk 0:00:24]}
40... a4 {[%clk 0:00:07.3]} 41. Kb4 {[%clk 0:00:24.1]} 41... Ra1 {[%clk
0:00:07.5]} 42. c4 {[%clk 0:00:22.4]} 42... a3 {[%clk 0:00:07.7]} 43. Kb3 {[%clk
0:00:21.9]} 43... a2 {[%clk 0:00:06.3]} 44. Rg2 {[%clk 0:00:19.1]} 44... Rf1
{[%clk 0:00:06.2]} 45. Rxa2 {[%clk 0:00:18.4]} 45... Rxf4 {[%clk 0:00:06.4]} 46.
exd6 {[%clk 0:00:18.3]} 46... exd6 {[%clk 0:00:07.3]} 47. Re2 {[%clk 0:00:17.7]}
47... Rf1 {[%clk 0:00:05.6]} 48. c5 {[%clk 0:00:14.3]} 48... dxc5 {[%clk
0:00:03.2]} 49. Kc4 {[%clk 0:00:14.9]} 49... Rc1+ {[%clk 0:00:03.3]} 50. Kb5
{[%clk 0:00:15]} 50... Rd1 {[%clk 0:00:01.3]} 51. Kxc5 {[%clk 0:00:14.8]} 1-0

[Event "Early-Titled-Tuesday-Blitz-October-17-2023"]
[Site "Chess.com"]
[Date "2023.10.17"]
[Round "11"]
[White "I_am_Javi"]
[Black "kirillshevchenko"]
[Result "1-0"]
[WhiteElo "2793"]
[BlackElo "2921"]
[TimeControl "180+1"]
[EndTime "10:10:37 PDT"]
[Termination "I_am_Javi won on time"]

1. e4 {[%clk 0:02:40.4]} 1... e5 {[%clk 0:02:57]} 2. Nf3 {[%clk 0:02:39.9]} 2...
d6 {[%clk 0:02:57.5]} 3. d4 {[%clk 0:02:40.2]} 3... exd4 {[%clk 0:02:58.4]} 4.
Nxd4 {[%clk 0:02:40.1]} 4... Nf6 {[%clk 0:02:58.9]} 5. Nc3 {[%clk 0:02:40.7]}
5... g6 {[%clk 0:02:59.2]} 6. Bc4 {[%clk 0:02:41.4]} 6... Bg7 {[%clk 0:02:58.6]}
7. f3 {[%clk 0:02:42.1]} 7... O-O {[%clk 0:02:58.8]} 8. Be3 {[%clk 0:02:42.8]}
8... Nc6 {[%clk 0:02:38.8]} 9. Qd2 {[%clk 0:02:25.8]} 9... Ne5 {[%clk
0:02:37.9]} 10. Be2 {[%clk 0:02:18]} 10... d5 {[%clk 0:02:28.3]} 11. exd5 {[%clk
0:02:10.9]} 11... Nxd5 {[%clk 0:02:27.6]} 12. Bg5 {[%clk 0:02:11.5]} 12... f6
{[%clk 0:02:14.4]} 13. Bh4 {[%clk 0:02:11.9]} 13... g5 {[%clk 0:01:15.6]} 14.
Bg3 {[%clk 0:02:06.5]} 14... f5 {[%clk 0:01:09.7]} 15. O-O-O {[%clk 0:02:01.6]}
15... f4 {[%clk 0:01:04.9]} 16. Bf2 {[%clk 0:02:00.4]} 16... Ne3 {[%clk
0:00:49]} 17. Bxe3 {[%clk 0:01:47.2]} 17... fxe3 {[%clk 0:00:49.9]} 18. Qxe3
{[%clk 0:01:48.1]} 18... Qf6 {[%clk 0:00:41.4]} 19. Ne4 {[%clk 0:01:39.1]} 19...
Qg6 {[%clk 0:00:40.8]} 20. Kb1 {[%clk 0:01:33.3]} 20... Bf5 {[%clk 0:00:30.2]}
21. Nxf5 {[%clk 0:01:28.4]} 21... Qxf5 {[%clk 0:00:31.1]} 22. Qxg5 {[%clk
0:01:22.1]} 22... Qxg5 {[%clk 0:00:20.5]} 23. Nxg5 {[%clk 0:01:23]} 23... Rae8
{[%clk 0:00:20.6]} 24. Ne4 {[%clk 0:01:19.3]} 24... h6 {[%clk 0:00:20.1]} 25. c3
{[%clk 0:01:15.6]} 25... Kh8 {[%clk 0:00:18.5]} 26. Bb5 {[%clk 0:01:11.3]} 26...
Re7 {[%clk 0:00:17.2]} 27. Ba4 {[%clk 0:01:11.9]} 27... Ng4 {[%clk 0:00:16.8]}
28. Rde1 {[%clk 0:01:09.2]} 28... Ne5 {[%clk 0:00:11.5]} 29. Bc2 {[%clk
0:01:09.6]} 29... Nc4 {[%clk 0:00:10.8]} 30. Kc1 {[%clk 0:01:02.9]} 30... h5
{[%clk 0:00:10.6]} 31. b3 {[%clk 0:00:51.6]} 31... Bh6+ {[%clk 0:00:10.4]} 32.
Kb1 {[%clk 0:00:51.8]} 32... Ne3 {[%clk 0:00:11.1]} 33. Re2 {[%clk 0:00:49.9]}
33... Rd8 {[%clk 0:00:11.4]} 34. Rhe1 {[%clk 0:00:48.2]} 34... Nd5 {[%clk
0:00:10.6]} 35. c4 {[%clk 0:00:40.5]} 35... Nf4 {[%clk 0:00:09.4]} 36. Rf2
{[%clk 0:00:39.8]} 36... Bg7 {[%clk 0:00:09.8]} 37. g3 {[%clk 0:00:35.9]} 37...
Nh3 {[%clk 0:00:04.8]} 38. Rfe2 {[%clk 0:00:36.1]} 38... Red7 {[%clk 0:00:04.6]}
39. f4 {[%clk 0:00:33.6]} 39... b6 {[%clk 0:00:02.1]} 40. c5 {[%clk 0:00:25]}
40... bxc5 {[%clk 0:00:02.2]} 41. Nxc5 {[%clk 0:00:25.9]} 41... Rd2 {[%clk
0:00:02.8]} 42. Ne6 {[%clk 0:00:24.9]} 42... Rxe2 {[%clk 0:00:02.5]} 43. Rxe2
{[%clk 0:00:25.8]} 43... Re8 {[%clk 0:00:03.1]} 44. Bf5 {[%clk 0:00:23.5]} 44...
Ng1 {[%clk 0:00:03.4]} 45. Rf2 {[%clk 0:00:20.1]} 45... Bf6 {[%clk 0:00:02.2]}
46. Kc2 {[%clk 0:00:19.7]} 46... h4 {[%clk 0:00:02.8]} 47. Bg4 {[%clk
0:00:16.8]} 47... hxg3 {[%clk 0:00:03.1]} 48. hxg3 {[%clk 0:00:17]} 48... Kg8
{[%clk 0:00:03.4]} 49. Kd3 {[%clk 0:00:11.5]} 49... Kf7 {[%clk 0:00:03.4]} 50.
Bh5+ {[%clk 0:00:10.8]} 50... Kxe6 {[%clk 0:00:01.5]} 51. Bxe8 {[%clk
0:00:11.7]} 51... Nh3 {[%clk 0:00:01.9]} 52. Rg2 {[%clk 0:00:11.6]} 52... Kd6
{[%clk 0:00:01.1]} 53. Bg6 {[%clk 0:00:11]} 53... Be7 {[%clk 0:00:01.5]} 54. Bf5
{[%clk 0:00:11.1]} 1-0

[Event "Early-Titled-Tuesday-Blitz-October-17-2023"]
[Site "Chess.com"]
[Date "2023.10.17"]
[Round "11"]
[White "Tobias_Koelle"]
[Black "ChessSkool"]
[Result "1-0"]
[WhiteElo "2935"]
[BlackElo "2688"]
[TimeControl "180+1"]
[EndTime "10:10:38 PDT"]
[Termination "Tobias_Koelle won by checkmate"]

1. d4 {[%clk 0:03:00.9]} 1... Nf6 {[%clk 0:02:57.5]} 2. Nc3 {[%clk 0:03:01.8]}
2... d6 {[%clk 0:02:49.6]} 3. e4 {[%clk 0:03:00.5]} 3... e5 {[%clk 0:02:47]} 4.
Nf3 {[%clk 0:02:57.7]} 4... Nbd7 {[%clk 0:02:46.7]} 5. Bc4 {[%clk 0:02:58]} 5...
Be7 {[%clk 0:02:40.5]} 6. O-O {[%clk 0:02:55.2]} 6... O-O {[%clk 0:02:39.3]} 7.
a4 {[%clk 0:02:54.7]} 7... c6 {[%clk 0:02:39.2]} 8. h3 {[%clk 0:02:53.5]} 8...
Qc7 {[%clk 0:02:32.7]} 9. a5 {[%clk 0:02:53.2]} 9... h6 {[%clk 0:02:32.4]} 10.
Re1 {[%clk 0:02:50.7]} 10... Re8 {[%clk 0:02:31.7]} 11. Ba2 {[%clk 0:02:46.1]}
11... Nf8 {[%clk 0:02:29.4]} 12. Be3 {[%clk 0:02:37.5]} 12... Be6 {[%clk
0:01:59.8]} 13. Qd3 {[%clk 0:02:35.6]} 13... Bxa2 {[%clk 0:01:54.2]} 14. Rxa2
{[%clk 0:02:36.5]} 14... Ne6 {[%clk 0:01:49.7]} 15. Qd1 {[%clk 0:02:11.7]} 15...
Nd7 {[%clk 0:01:35.3]} 16. d5 {[%clk 0:02:10.4]} 16... Nec5 {[%clk 0:01:35.3]}
17. b4 {[%clk 0:02:06.7]} 17... Na6 {[%clk 0:01:32.8]} 18. Rb2 {[%clk
0:01:51.4]} 18... Qc8 {[%clk 0:01:18.2]} 19. Nd2 {[%clk 0:01:40.8]} 19... Rd8
{[%clk 0:01:04.2]} 20. Nc4 {[%clk 0:01:21.7]} 20... Nf6 {[%clk 0:01:04.5]} 21.
Qd3 {[%clk 0:01:19.4]} 21... Nc7 {[%clk 0:00:55.8]} 22. Rd1 {[%clk 0:01:08.6]}
22... Bf8 {[%clk 0:00:28.7]} 23. Na3 {[%clk 0:01:05.2]} 23... cxd5 {[%clk
0:00:20.4]} 24. Nxd5 {[%clk 0:01:05.2]} 24... Nfxd5 {[%clk 0:00:13]} 25. exd5
{[%clk 0:01:06.1]} 25... f5 {[%clk 0:00:13.7]} 26. c4 {[%clk 0:01:05.6]} 26...
g6 {[%clk 0:00:07]} 27. Rc2 {[%clk 0:01:04.1]} 27... Bg7 {[%clk 0:00:06.4]} 28.
Rdc1 {[%clk 0:01:04.1]} 28... f4 {[%clk 0:00:05.2]} 29. Bd2 {[%clk 0:01:03.7]}
29... Qf5 {[%clk 0:00:05.9]} 30. Qxf5 {[%clk 0:00:51.6]} 30... gxf5 {[%clk
0:00:06.8]} 31. Nb5 {[%clk 0:00:49.9]} 31... Rd7 {[%clk 0:00:05.5]} 32. Kf1
{[%clk 0:00:37.3]} 32... Kf7 {[%clk 0:00:05.3]} 33. Ke2 {[%clk 0:00:37.5]} 33...
a6 {[%clk 0:00:03]} 34. Nc3 {[%clk 0:00:36.8]} 34... Rc8 {[%clk 0:00:03]} 35.
Na4 {[%clk 0:00:37.3]} 35... Rcd8 {[%clk 0:00:02.4]} 36. Nb6 {[%clk 0:00:37.3]}
36... Re7 {[%clk 0:00:03.2]} 37. Rd1 {[%clk 0:00:31.7]} 37... Ree8 {[%clk
0:00:03.3]} 38. Bc1 {[%clk 0:00:32.3]} 38... Bf6 {[%clk 0:00:03.4]} 39. c5
{[%clk 0:00:30.1]} 39... dxc5 {[%clk 0:00:03.5]} 40. bxc5 {[%clk 0:00:31]} 40...
Nb5 {[%clk 0:00:03.5]} 41. Bb2 {[%clk 0:00:27.6]} 41... e4 {[%clk 0:00:03.2]}
42. Bxf6 {[%clk 0:00:24.2]} 42... Kxf6 {[%clk 0:00:04.1]} 43. Rc4 {[%clk
0:00:20]} 43... Re5 {[%clk 0:00:04]} 44. Rdc1 {[%clk 0:00:17.5]} 44... Nc7
{[%clk 0:00:03.1]} 45. c6 {[%clk 0:00:18.4]} 45... Nxd5 {[%clk 0:00:02.7]} 46.
c7 {[%clk 0:00:09.8]} 46... Nxc7 {[%clk 0:00:02.8]} 47. Rxc7 {[%clk 0:00:10.6]}
47... Rxa5 {[%clk 0:00:02.9]} 48. Rxb7 {[%clk 0:00:08.8]} 48... Ra2+ {[%clk
0:00:02.6]} 49. Kf1 {[%clk 0:00:07.8]} 49... Rdd2 {[%clk 0:00:03.2]} 50. Rc6+
{[%clk 0:00:06.8]} 50... Kg5 {[%clk 0:00:03.8]} 51. Rg7+ {[%clk 0:00:06]} 51...
Kh5 {[%clk 0:00:03.7]} 52. Kg1 {[%clk 0:00:05.2]} 52... Rxf2 {[%clk 0:00:03.5]}
53. Nd5 {[%clk 0:00:04.3]} 53... e3 {[%clk 0:00:02.9]} 54. Nf6+ {[%clk 0:00:03]}
54... Kh4 {[%clk 0:00:03.4]} 55. Ne4 {[%clk 0:00:03.2]} 55... Kh5 {[%clk
0:00:01.5]} 56. Nxf2 {[%clk 0:00:03]} 56... Rxf2 {[%clk 0:00:01.5]} 57. Rf6
{[%clk 0:00:03.4]} 57... Ra2 {[%clk 0:00:01.2]} 58. Rxf5+ {[%clk 0:00:04.1]}
58... Kh4 {[%clk 0:00:01.9]} 59. Rxf4+ {[%clk 0:00:04.8]} 59... Kh5 {[%clk
0:00:02.6]} 60. Rf5+ {[%clk 0:00:05]} 60... Kh4 {[%clk 0:00:03]} 61. g3+ {[%clk
0:00:05.9]} 61... Kxh3 {[%clk 0:00:03.4]} 62. Rh5# {[%clk 0:00:06.8]} 1-0